fUST/lending_fUST_20240502
["ID","MTS","AMOUNT","RATE_DAILY","PERIOD"]
[325227629,1714596689167,-1071.63,0.00064383,120]
[325227630,1714596689177,-1139.17,0.00064383,120]
[325227631,1714596689186,-629.98,0.00064383,7]
[325227632,1714596689196,-513.73,0.00064383,120]
[325227633,1714596689205,-6873.87,0.00064383,120]
[325227634,1714596689214,-1040.84,0.00064383,120]
[325227635,1714596689223,-1819.25,0.00064383,2]
[325227636,1714596689233,-807.38,0.00064383,120]
[325227637,1714596689244,-684.4,0.00064383,120]
[325227638,1714596689256,-1563.93,0.00064383,120]
[325227639,1714596689266,-880.74,0.00064383,120]
[325227640,1714596689276,-500.0,0.00064383,120]
[325227641,1714596689286,-289.95177769,0.00064383,120]
[325227642,1714596689296,-905.71,0.00064383,120]
[325227643,1714596689305,-1006.03,0.00064383,120]
[325227644,1714596689314,-990.64,0.00064383,120]
[325227645,1714596689324,-529.69,0.00064383,120]
[325227646,1714596689333,-957.98,0.00064383,120]
[325227647,1714596689343,-501.28,0.00064383,120]
[325227648,1714596689352,-957.45,0.00064383,120]
[325227649,1714596689361,-1396.65,0.00064383,30]
[325227650,1714596689371,-13131.9,0.00064383,120]
[325227651,1714596689380,-649.29,0.00064383,120]
[325227652,1714596689390,-5415.88,0.00064383,120]
[325227653,1714596689400,-524.46,0.00064383,120]
[325227654,1714596689410,-1124.84,0.00064383,120]
[325227655,1714596689419,-725.84,0.00064383,120]
[325227656,1714596689429,-2624.92,0.00064383,120]
[325227657,1714596689442,-773.09,0.00064383,120]
[325227658,1714596689451,-672.9,0.00064383,120]
[325227659,1714596689460,-721.56,0.00064383,120]
[325227660,1714596689469,-671.69,0.00064383,120]
[325227661,1714596689478,-904.57,0.00064383,120]
[325227662,1714596689488,-4150.6,0.00064383,120]
[325227663,1714596689497,-1064.37,0.00064383,120]
[325227664,1714596689508,-708.55,0.00064383,120]
[325227665,1714596689518,-2139.31,0.00064383,120]
[325227666,1714596689527,-499.52717129,0.00064383,120]
[325227667,1714596689537,-893.59,0.00064383,120]
[325227668,1714596689672,-1819.15,0.00064383,120]
[325227669,1714596689682,-2548.41,0.00064383,120]
[325227670,1714596689691,-647.78,0.00064383,120]
[325227671,1714596689700,-747.59,0.00064383,120]
[325227672,1714596689709,-972.62,0.00064383,120]
[325227673,1714596689718,-953.99,0.00064383,120]
[325227674,1714596689728,-1932.29,0.00064383,120]
[325227675,1714596689738,-912.85,0.00064383,120]
[325227676,1714596689747,-631.99,0.00064383,120]
[325227677,1714596689757,-564.95,0.00064383,120]
[325227678,1714596689767,-771.7,0.00064383,120]
[325227679,1714596689776,-1000000.0,0.000644,30]
[325227680,1714596689786,-10000.0,0.00064567,120]
[325227681,1714596689795,-1259.78,0.00064657,120]
[325227682,1714596689805,-635.9,0.00064931,120]
[325227683,1714596689814,-605.36,0.00064931,120]
[325227684,1714596689823,-905.44,0.00064931,120]
[325227685,1714596689832,-1823.07,0.00064931,120]
[325227686,1714596689842,-1540.18,0.00064931,120]
[325227687,1714596689851,-747.85,0.00064931,120]
[325227688,1714596689861,-582.8,0.00064931,120]
[325227689,1714596689870,-783.32,0.00064931,120]
[325227690,1714596689880,-660.58,0.00064931,120]
[325227691,1714596689890,-528.91,0.00064931,120]
[325227692,1714596689899,-651.79,0.00064931,120]
[325227693,1714596689908,-569.39,0.00064931,120]
[325227694,1714596689917,-533.64,0.00064931,120]
[325227695,1714596689926,-893.16,0.00064931,120]
[325227696,1714596689936,-307.80685515,0.00064931,120]
[325227697,1714596689945,-750.74,0.00064931,120]
[325227698,1714596689955,-264.83434973,0.00064931,120]
[325227699,1714596689969,-918.03,0.00064931,120]
[325227700,1714596689978,-809.76,0.00064931,120]
[325227701,1714596689987,-816.25,0.00064931,120]
[325227702,1714596689996,-676.4,0.00064931,120]
[325227703,1714596690008,-500.0,0.00064931,120]
[325227704,1714596690017,-500.0,0.00064931,120]
[325227705,1714596690027,-725.28,0.00064931,120]
[325227706,1714596690037,-617.03,0.00064931,120]
[325227707,1714596690046,-747.13,0.00064931,120]
[325227708,1714596690055,-807.48,0.00064931,120]
[325227709,1714596690065,-880.55,0.00064931,120]
[325227710,1714596690074,-772.32,0.00064931,120]
[325227711,1714596690083,-902.14,0.00064931,120]
[325227712,1714596690092,-1424.37,0.00064931,120]
[325227713,1714596690101,-622.31,0.00064931,120]
[325227714,1714596690110,-908.32,0.00064931,120]
[325227715,1714596690120,-1274.48,0.00064931,120]
[325227716,1714596690129,-500.0,0.00064931,120]
[325227717,1714596690138,-505.13,0.00064931,120]
[325227718,1714596690147,-2748.45,0.00064931,120]
[325227719,1714596690156,-2748.72,0.00064931,120]
[325227720,1714596690165,-751.55,0.00064931,120]
[325227721,1714596690175,-350.72926235,0.00064931,120]
[325227722,1714596690184,-226.47395288,0.00064931,120]
[325227723,1714596690193,-891.08,0.00064931,120]
[325227724,1714596690203,-542.04,0.00064931,120]
[325227725,1714596690212,-255.09,0.00064931,120]
[325227726,1714596690222,-718.42,0.00064931,120]
[325227727,1714596690231,-876.77,0.00064931,120]
[325227728,1714596690241,-543.06,0.00064931,120]
[325227729,1714596690250,-597.36,0.00064931,120]
[325227730,1714596690261,-445.76053591,0.00064931,120]
[325227731,1714596690272,-847.59,0.00064931,120]
[325227732,1714596690281,-552.66,0.00064931,120]
[325227733,1714596690296,-737.95,0.00064931,120]
[325227734,1714596690306,-735.13,0.00064931,120]
[325227735,1714596690314,-487.58,0.00064931,21]
[325227736,1714596690323,-624.7,0.00064931,120]
[325227737,1714596690332,-3241.16,0.00064931,120]
[325227738,1714596690341,-1071.63,0.00064931,120]
[325227739,1714596690351,-1139.17,0.00064931,120]
[325227740,1714596690360,-629.98,0.00064931,7]
[325227741,1714596690370,-513.73,0.00064931,120]
[325227742,1714596690380,-6873.87,0.00064931,120]
[325227743,1714596690389,-1040.84,0.00064931,120]
[325227744,1714596690398,-1819.25,0.00064931,2]
[325227745,1714596690408,-807.38,0.00064931,120]
[325227746,1714596690417,-684.4,0.00064931,120]
[325227747,1714596690427,-1563.93,0.00064931,120]
[325227748,1714596690439,-880.74,0.00064931,120]
[325227749,1714596690448,-500.0,0.00064931,120]
[325227750,1714596690457,-905.71,0.00064931,120]
[325227751,1714596690467,-1006.03,0.00064931,120]
[325227752,1714596690476,-990.64,0.00064931,120]
[325227753,1714596690485,-529.69,0.00064931,120]
[325227754,1714596690495,-957.98,0.00064931,120]
[325227755,1714596690505,-501.28,0.00064931,120]
[325227756,1714596690514,-957.45,0.00064931,120]
[325227757,1714596690523,-1396.65,0.00064931,30]
[325227758,1714596690533,-13131.9,0.00064931,120]
[325227759,1714596690543,-649.29,0.00064931,120]
[325227760,1714596690553,-5415.88,0.00064931,120]
[325227761,1714596690562,-524.46,0.00064931,120]
[325227762,1714596690572,-1124.84,0.00064931,120]
[325227763,1714596690581,-725.84,0.00064931,120]
[325227764,1714596690590,-2624.92,0.00064931,120]
[325227765,1714596690600,-773.09,0.00064931,120]
[325227766,1714596690610,-721.56,0.00064931,120]
[325227767,1714596690620,-672.9,0.00064931,120]
[325227768,1714596690630,-671.69,0.00064931,120]
[325227769,1714596690640,-904.57,0.00064931,120]
[325227770,1714596690651,-4150.6,0.00064931,120]
[325227771,1714596690663,-1064.37,0.00064931,120]
[325227772,1714596690674,-708.55,0.00064931,120]
[325227773,1714596690685,-2139.31,0.00064931,120]
[325227774,1714596690695,-893.59,0.00064931,120]
[325227775,1714596690706,-1819.15,0.00064931,120]
[325227776,1714596690716,-2548.41,0.00064931,120]
[325227777,1714596690726,-647.78,0.00064931,120]
[325227778,1714596690736,-747.59,0.00064931,120]
[325227779,1714596690745,-972.62,0.00064931,120]
[325227780,1714596690757,-953.99,0.00064931,120]
[325227781,1714596690767,-1932.29,0.00064931,120]
[325227782,1714596690778,-912.85,0.00064931,120]
[325227783,1714596690788,-631.99,0.00064931,120]
[325227784,1714596690797,-564.95,0.00064931,120]
[325227785,1714596690807,-771.7,0.00064931,120]
[325227786,1714596690816,-2692.10080688,0.00064941,120]
[325227787,1714596690825,-673.02520173,0.00064941,120]
[325227788,1714596690835,-841.28150216,0.00064941,120]
[325227789,1714596690844,-151.0,0.00065068,120]
[325227790,1714596690854,-1259.78,0.00065205,120]
[325227791,1714596690864,-1000.0,0.0006543,120]
[325227792,1714596690874,-635.96769318,0.00065479,120]
[325227793,1714596690883,-605.41090964,0.00065479,120]
[325227794,1714596690892,-905.56,0.00065479,120]
[325227795,1714596690902,-1823.23471723,0.00065479,120]
[325227796,1714596690911,-1540.36416264,0.00065479,120]
[325227797,1714596690920,-747.94752912,0.00065479,120]
[325227798,1714596690929,-583.02666535,0.00065479,120]
[325227799,1714596690939,-783.54919095,0.00065479,120]
[325227800,1714596690948,-660.77110617,0.00065479,120]
[325227801,1714596690958,-529.14230674,0.00065479,120]
[325227802,1714596690967,-651.88489302,0.00065479,120]
[325227803,1714596690977,-569.45223816,0.00065479,120]
[325227804,1714596690987,-533.87989382,0.00065479,120]
[325227805,1714596690995,-893.25484615,0.00065479,120]
[325227806,1714596691005,-750.74797077,0.00065479,120]
[325227807,1714596691015,-918.22127132,0.00065479,120]
[325227808,1714596691024,-809.86413123,0.00065479,120]
[325227809,1714596691033,-816.35509029,0.00065479,120]
[325227810,1714596691042,-676.56135813,0.00065479,120]
[325227811,1714596691052,-405.60910303,0.00065479,120]
[325227812,1714596691062,-179.64326632,0.00065479,120]
[325227813,1714596691071,-725.31836074,0.00065479,120]
[325227814,1714596691080,-617.21053831,0.00065479,120]
[325227815,1714596691089,-747.20262726,0.00065479,120]
[325227816,1714596691099,-807.59816474,0.00065479,120]
[325227817,1714596691108,-880.58069403,0.00065479,120]
[325227818,1714596691117,-772.45793028,0.00065479,120]
[325227819,1714596691126,-1424.41067215,0.00065479,120]
[325227820,1714596691135,-902.20409253,0.00065479,120]
[325227821,1714596691144,-622.31462863,0.00065479,120]
[325227822,1714596691153,-908.38224274,0.00065479,120]
[325227823,1714596691162,-1274.61578544,0.00065479,120]
[325227824,1714596691172,-285.25819304,0.00065479,120]
[325227825,1714596691181,-505.25782722,0.00065479,120]
[325227826,1714596691190,-2748.53,0.00065479,120]
[325227827,1714596691200,-2748.74470857,0.00065479,120]
[325227828,1714596691210,-751.74340807,0.00065479,120]
[325227829,1714596691220,-891.14964315,0.00065479,120]
[325227830,1714596691229,-542.08892326,0.00065479,120]
[325227831,1714596691238,-718.6065288,0.00065479,120]
[325227832,1714596691248,-876.89282885,0.00065479,120]
[325227833,1714596691258,-543.16105592,0.00065479,120]
[325227834,1714596691267,-597.55256902,0.00065479,120]
[325227835,1714596691276,-847.73534599,0.00065479,120]
[325227836,1714596691286,-552.78172558,0.00065479,120]
[325227837,1714596691295,-738.04687587,0.00065479,120]
[325227838,1714596691304,-735.21901154,0.00065479,120]
[325227839,1714596691314,-624.93458732,0.00065479,120]
[325227840,1714596691324,-3241.24123911,0.00065479,120]
[325227841,1714596691333,-1071.81517099,0.00065479,120]
[325227842,1714596691343,-1139.18040474,0.00065479,120]
[325227843,1714596691352,-630.16781962,0.00065479,7]
[325227844,1714596691362,-513.77302798,0.00065479,120]
[325227845,1714596691372,-6873.9978962,0.00065479,120]
[325227846,1714596691381,-1041.03233005,0.00065479,120]
[325227847,1714596691391,-1819.387039,0.00065479,2]
[325227848,1714596691400,-807.45680576,0.00065479,120]
[325227849,1714596691410,-684.50068485,0.00065479,120]
[325227850,1714596691420,-1564.13512581,0.00065479,120]
[325227851,1714596691430,-880.76500921,0.00065479,120]
[325227852,1714596691440,-362.97327538,0.00065479,120]
[325227853,1714596691450,-905.82841735,0.00065479,120]
[325227854,1714596691459,-1006.25,0.00065479,120]
[325227855,1714596691469,-990.7471524,0.00065479,120]
[325227856,1714596691478,-529.73503784,0.00065479,120]
[325227857,1714596691487,-958.15923881,0.00065479,120]
[325227858,1714596691497,-501.39380575,0.00065479,120]
[325227859,1714596691507,-957.49352959,0.00065479,120]
[325227860,1714596691516,-1396.71417153,0.00065479,30]
[325227861,1714596691525,-13132.03219678,0.00065479,120]
[325227862,1714596691535,-649.33504434,0.00065479,120]
[325227863,1714596691544,-5415.94322594,0.00065479,120]
[325227864,1714596691554,-524.56916177,0.00065479,120]
[325227865,1714596691563,-1125.0103491,0.00065479,120]
[325227866,1714596691572,-725.99088512,0.00065479,120]
[325227867,1714596691582,-2625.06355985,0.00065479,120]
[325227868,1714596691591,-773.11320977,0.00065479,120]
[325227869,1714596691601,-721.69820164,0.00065479,120]
[325227870,1714596691610,-672.95958124,0.00065479,120]
[325227871,1714596691619,-671.84744826,0.00065479,120]
[325227872,1714596691629,-904.62985304,0.00065479,120]
[325227873,1714596691638,-4150.68821529,0.00065479,120]
[325227874,1714596691647,-1064.53483374,0.00065479,120]
[325227875,1714596691656,-708.78805581,0.00065479,120]
[325227876,1714596691666,-2139.53567574,0.00065479,120]
[325227877,1714596691675,-893.63658612,0.00065479,120]
[325227878,1714596691684,-1819.26642529,0.00065479,120]
[325227879,1714596691694,-2548.60816292,0.00065479,120]
[325227880,1714596691704,-647.81679656,0.00065479,120]
[325227881,1714596691713,-747.72329829,0.00065479,120]
[325227882,1714596691722,-972.69765431,0.00065479,120]
[325227883,1714596691731,-954.18,0.00065479,120]
[325227884,1714596691741,-1932.39407872,0.00065479,120]
[325227885,1714596691751,-912.95832668,0.00065479,120]
[325227886,1714596691761,-632.07923986,0.00065479,120]
[325227887,1714596691770,-565.1438424,0.00065479,120]
[325227888,1714596691779,-771.70178401,0.00065479,120]
[325227889,1714596691788,-190.94417352,0.00065483,120]
[325227890,1714596691797,-154.89611828,0.00065753,7]
[325227891,1714596691806,-1259.78,0.00065753,120]
[325227892,1714596691815,-500.0,0.00065753,120]
[325227893,1714596691824,-500.0,0.00065753,120]
[325227894,1714596691833,-500.0,0.00065753,120]
[325227895,1714596691842,-501.12280581,0.00065753,120]
[325227896,1714596691852,-932.0,0.0006615,120]
[325227897,1714596691861,-1259.78,0.00066301,120]
[325227898,1714596691870,-151.0,0.0006674,120]
[325227899,1714596691880,-10000.0,0.00066789,120]
[325227900,1714596691889,-1259.78,0.00066849,120]
[325227901,1714596691898,-33789.23494298,0.000669,120]
[325227902,1714596691907,-1259.78,0.00067397,120]
[325227903,1714596691917,-203.8574549,0.00067726,60]
[325227904,1714596691926,-203.8574549,0.00067726,60]
[325227905,1714596691935,-1259.78,0.00067945,120]
[325227906,1714596691944,-267.650158,0.00068205,2]
[325227907,1714596691954,-424.130374,0.00068205,2]
[325227908,1714596691966,-373.98646,0.00068205,2]
[325227909,1714596691976,-151.0,0.00068411,120]
[325227910,1714596691986,-250.0,0.00068493,30]
[325227911,1714596691995,-500.0,0.00068493,31]
[325227912,1714596692007,-206.11947993,0.00068493,32]
[325227913,1714596692017,-1259.78,0.00068493,120]
[325227914,1714596692026,-70000.0,0.000687,120]
[325227915,1714596692035,-10000.0,0.00068786,120]
[325227916,1714596692045,-309.21154833,0.00069,7]
[325227917,1714596692056,-50872.12257919,0.00069,7]
[325227918,1714596692065,-3000.0,0.00069,120]
[325227919,1714596692075,-3000.0,0.0006901,120]
[325227920,1714596692084,-3000.0,0.0006902,120]
[325227921,1714596692094,-3000.0,0.0006903,120]
[325227922,1714596692103,-3986.284974,0.0006904,120]
[325227923,1714596692112,-1259.78,0.00069041,120]
[325227924,1714596692121,-166.666666,0.00069041,120]
[325227925,1714596692131,-203.8574549,0.00069205,60]
[325227926,1714596692140,-203.8574549,0.00069205,60]
[325227927,1714596692149,-932.0,0.00069458,120]
[325227928,1714596692158,-1259.78,0.00069589,120]
[325227929,1714596692167,-2000.0,0.0007,120]
[325227930,1714596692176,-333.52401404,0.0007,120]
[325227931,1714596692185,-150.0,0.0007,120]
[325227932,1714596692194,-5000.0,0.0007,3]
[325227933,1714596692204,-4382.66663868,0.0007,120]
[325227934,1714596692213,-151.0,0.00070082,120]
[325227935,1714596692223,-1259.94642004,0.00070136,120]
[325227936,1714596692232,-203.8574549,0.00070137,60]
[325227937,1714596692241,-203.8574549,0.00070137,60]
[325227938,1714596692251,-473.90804044,0.00070674,120]
[325227939,1714596692260,-5000.0,0.000709,120]
[325227940,1714596692270,-200000.0,0.00071,120]
[325227941,1714596692279,-260.04022493,0.00071212,120]
[325227942,1714596692291,-151.0,0.00071753,120]
[325227943,1714596692301,-260.04022493,0.00072216,120]
[325227944,1714596692310,-260.04022493,0.00072357,120]
[325227945,1714596692320,-10000.0,0.00072366,120]
[325227946,1714596692329,-267.650158,0.0007279,120]
[325227947,1714596692339,-424.130374,0.0007279,120]
[325227948,1714596692348,-373.98646,0.0007279,120]
[325227949,1714596692358,-1000.0,0.000728,120]
[325227950,1714596692367,-1000.0,0.000728,120]
[325227951,1714596692376,-3750.619312,0.000728,120]
[325227952,1714596692385,-932.0,0.0007293,120]
[325227953,1714596692517,-2212.31467949,0.00073,120]
[325227954,1714596692528,-565.20911443,0.00073,120]
[325227955,1714596692538,-200000.0,0.00073,120]
[325227956,1714596692548,-151.0,0.00073425,120]
[325227957,1714596692557,-50000.0,0.000738,120]
[325227958,1714596692567,-1000.0,0.00074399,120]
[325227959,1714596692576,-88257.69441465,0.000744,30]
[325227960,1714596692586,-10000.0,0.00074666,120]
[325227961,1714596692596,-10000.0,0.00074678,120]
[325227962,1714596692605,-5000.0,0.000749,120]
[325227963,1714596692615,-183553.9358474,0.00075,120]
[325227964,1714596692624,-151.0,0.00075096,120]
[325227965,1714596692633,-10000.0,0.00075678,120]
[325227966,1714596692643,-1000.0,0.00076209,60]
[325227967,1714596692653,-1000.0,0.0007634,120]
[325227968,1714596692663,-178.44955265,0.000765,120]
[325227969,1714596692672,-932.0,0.00076577,120]
[325227970,1714596692682,-407.0,0.000766,120]
[325227971,1714596692692,-10000.0,0.00076678,120]
[325227972,1714596692701,-151.0,0.00076767,120]
[325227973,1714596692711,-267.650158,0.00077376,120]
[325227974,1714596692721,-424.130374,0.00077376,120]
[325227975,1714596692730,-373.98646,0.00077376,120]
[325227976,1714596692739,-10000.0,0.00077678,120]
[325227977,1714596692749,-1000.0,0.00077878,60]
[325227978,1714596692759,-375.0,0.0007798,35]
[325227979,1714596692768,-375.0,0.0007799,35]
[325227980,1714596692776,-33464.09378961,0.00078,60]
[325227981,1714596692784,-1000000.0,0.000784,120]
[325227982,1714596692792,-151.0,0.00078438,120]
[325227983,1714596692800,-10000.0,0.00078678,120]
[325227984,1714596692808,-5000.0,0.000789,120]
[325227985,1714596692818,-1000.0,0.00079,79]
[325227986,1714596692827,-10000.0,0.00079678,120]
[325227987,1714596692837,-10000.0,0.000799,120]
[325227988,1714596692846,-10000.0,0.000799,120]
[325227989,1714596692856,-2000.0,0.000799,120]
[325227990,1714596692865,-661.80388598,0.0008,50]
[325227991,1714596692875,-3964.974633,0.0008,2]
[325227992,1714596692884,-3611.09225124,0.0008,120]
[325227993,1714596692894,-250.0,0.0008,120]
[325227994,1714596692903,-140022.74551512,0.0008,120]
[325227995,1714596692912,-2000.0,0.0008,120]
[325227996,1714596692922,-7613.08904392,0.0008,120]
[325227997,1714596692931,-82939.37784273,0.0008,120]
[325227998,1714596692941,-5000.0,0.0008,3]
[325227999,1714596692950,-300.0,0.0008,105]
[325228000,1714596692961,-4382.66663868,0.0008,120]
[325228001,1714596692973,-151.0,0.0008011,120]
[325228002,1714596692982,-932.0,0.00080406,120]
[325228003,1714596692992,-10000.0,0.00080777,120]
[325228004,1714596693002,-200000.0,0.00081,120]
[325228005,1714596693014,-300.0,0.000815,106]
[325228006,1714596693024,-10000.0,0.00081777,120]
[325228007,1714596693033,-151.0,0.00081781,120]
[325228008,1714596693045,-267.650158,0.00081961,120]
[325228009,1714596693056,-424.130374,0.00081961,120]
[325228010,1714596693065,-373.98646,0.00081961,120]
[325228011,1714596693075,-200000.0,0.00082,120]
[325228012,1714596693085,-10000.0,0.00082777,120]
[325228013,1714596693095,-300.0,0.00083,107]
[325228014,1714596693105,-473.90804044,0.00083216,120]
[325228015,1714596693115,-151.0,0.00083452,120]
[325228016,1714596693124,-152.90186699,0.00083734,120]
[325228017,1714596693134,-10000.0,0.00083777,120]
[325228018,1714596693143,-1000.0,0.00084,120]
[325228019,1714596693152,-1000.0,0.00084,120]
[325228020,1714596693161,-1000.0,0.00084,120]
[325228021,1714596693171,-1000.0,0.00084,120]
[325228022,1714596693180,-1000.0,0.00084,120]
[325228023,1714596693189,-1000.0,0.00084,120]
[325228024,1714596693198,-1000000.0,0.000844,30]
[325228025,1714596693207,-932.0,0.00084426,120]
[325228026,1714596693216,-300.0,0.000845,108]
[325228027,1714596693226,-10000.0,0.00084777,120]
[325228028,1714596693236,-5000.0,0.000849,120]
[325228029,1714596693245,-500.0,0.00085,120]
[325228030,1714596693255,-151.0,0.00085123,120]
[325228031,1714596693267,-152.70730249,0.00085227,120]
[325228032,1714596693277,-10000.0,0.00085777,120]
[325228033,1714596693286,-300.0,0.00086,109]
[325228034,1714596693297,-166.666666,0.00086027,120]
[325228035,1714596693307,-66150.0,0.000865,120]
[325228036,1714596693317,-267.650158,0.00086546,120]
[325228037,1714596693326,-424.130374,0.00086546,120]
[325228038,1714596693335,-373.98646,0.00086546,120]
[325228039,1714596693345,-10000.0,0.00086777,120]
[325228040,1714596693355,-151.0,0.00086795,120]
[325228041,1714596693365,-154.93729695,0.00087497,7]
[325228042,1714596693374,-317.85160107,0.000875,110]
[325228043,1714596693384,-155.10854111,0.00087658,7]
[325228044,1714596693394,-207.82193836,0.00087668,7]
[325228045,1714596693404,-301.33246564,0.00087668,7]
[325228046,1714596693413,-203.71502327,0.00087668,7]
[325228047,1714596693423,-10000.0,0.00087777,120]
[325228048,1714596693432,-3500.6118064,0.00087895,120]
[325228049,1714596693443,-113497.13057176,0.00088,120]
[325228050,1714596693452,-7728.38674929,0.00088,120]
[325228051,1714596693461,-153.32315408,0.00088436,120]
[325228052,1714596693471,-151.0,0.00088466,120]
[325228053,1714596693480,-1000.0,0.00088499,90]
[325228054,1714596693489,-10000.0,0.00088666,120]
[325228055,1714596693499,-10000.0,0.00089666,120]
[325228056,1714596693510,-2000.0,0.0009,120]
[325228057,1714596693519,-548.9041534,0.0009,120]
[325228058,1714596693528,-4382.66663868,0.0009,120]
[325228059,1714596693538,-335.0,0.00090137,120]
[325228060,1714596693547,-10000.0,0.00090666,120]
[325228061,1714596693557,-267.650158,0.00091132,120]
[325228062,1714596693566,-424.130374,0.00091132,120]
[325228063,1714596693575,-373.98646,0.00091132,120]
[325228064,1714596693586,-10000.0,0.00091666,120]
[325228065,1714596693594,-1000.0,0.00092047,120]
[325228066,1714596693604,-151.0,0.00092493,120]
[325228067,1714596693613,-1000.0,0.00092602,90]
[325228068,1714596693623,-203.577557,0.00093425,120]
[325228069,1714596693632,-380.13,0.0009398,35]
[325228070,1714596693641,-375.0,0.0009399,35]
[325228071,1714596693650,-1000000.0,0.000944,120]
[325228072,1714596693659,-10000.0,0.00094666,120]
[325228073,1714596693668,-6048.84585506,0.0009488,60]
[325228074,1714596693678,-599.2737948,0.00095,120]
[325228075,1714596693688,-267.650158,0.00095717,120]
[325228076,1714596693697,-424.130374,0.00095717,120]
[325228077,1714596693707,-373.98646,0.00095717,120]
[325228078,1714596693717,-6840.36980101,0.000975,30]
[325228079,1714596693727,-10000.0,0.00097666,120]
[325228080,1714596693737,-2061.567877,0.00098,120]
[325228081,1714596693747,-566493.93688547,0.0009888,30]
[325228082,1714596693756,-2000.0,0.00099,7]
[325228083,1714596693768,-153.32315408,0.00099124,120]
[325228084,1714596693777,-38249.0,0.001,120]
[325228085,1714596693786,-1115.79345187,0.001,120]
[325228086,1714596693795,-890.11777478,0.001,120]
[325228087,1714596693805,-10000.0,0.001,2]
[325228088,1714596693814,-1000.0,0.001,120]
[325228089,1714596693823,-2000.0,0.001,10]
[325228090,1714596693833,-1000.0,0.001,2]
[325228091,1714596693843,-5000.000001,0.001,120]
[325228092,1714596693852,-677.68899397,0.001,2]
[325228093,1714596693861,-3940.0,0.001,3]
[325228094,1714596693871,-949.18824511,0.001,5]
[325228095,1714596693881,-1998.28116882,0.001,120]
[325228096,1714596693890,-4382.66663868,0.001,120]
[325228097,1714596693900,-151.0,0.001,120]
[325228098,1714596693910,-473.90804044,0.00100033,120]
[325228099,1714596693919,-267.650158,0.00100303,120]
[325228100,1714596693929,-424.130374,0.00100303,120]
[325228101,1714596693938,-373.98646,0.00100303,120]
[325228102,1714596693947,-10000.0,0.0010255,120]
[325228103,1714596693959,-166.666666,0.00103014,120]
[325228104,1714596693972,-1000.0,0.00104728,90]
[325228105,1714596693981,-267.650158,0.00104888,120]
[325228106,1714596693990,-424.130374,0.00104888,120]
[325228107,1714596693999,-373.98646,0.00104888,120]
[325228108,1714596694010,-327.783939,0.00105425,120]
[325228109,1714596694020,-491.67591,0.00105425,120]
[325228110,1714596694029,-1844.232394,0.00105425,120]
[325228111,1714596694039,-1881.243559,0.00105425,120]
[325228112,1714596694049,-167.454887,0.00105425,120]
[325228113,1714596694059,-3684.162511,0.00105425,120]
[325228114,1714596694068,-308.0,0.00105708,2]
[325228115,1714596694077,-308.0,0.00105708,2]
[325228116,1714596694087,-308.0,0.00105708,2]
[325228117,1714596694097,-308.0,0.00105708,2]
[325228118,1714596694107,-308.0,0.00105708,2]
[325228119,1714596694116,-308.0,0.00105708,2]
[325228120,1714596694125,-308.0,0.00105708,2]
[325228121,1714596694136,-308.0,0.00105708,2]
[325228122,1714596694145,-327.783939,0.00106743,120]
[325228123,1714596694155,-491.67591,0.00106743,120]
[325228124,1714596694164,-1844.232394,0.00106743,120]
[325228125,1714596694174,-1881.243559,0.00106743,120]
[325228126,1714596694183,-3684.162511,0.00106743,120]
[325228127,1714596694193,-327.783939,0.0010806,120]
[325228128,1714596694202,-491.67591,0.0010806,120]